bitfinex/quotes_SOLUSD_20241126
["timestamp","ask_amount","ask_price","bid_price","bid_amount"]
[1732634434090,20.0,229.73,229.71,5.0]
[1732634434287,59.15402997,229.73,229.71,5.0]
[1732634434502,59.15402997,229.73,229.69,5.0]
[1732634434818,4.3531,229.72,229.7,5.0]
[1732634435017,20.0,229.73,229.7,5.0]
[1732634435312,39.15402997,229.77,229.75,5.0]
[1732634435486,39.15402997,229.77,229.72,5.0]
[1732634435820,39.15402997,229.77,229.76,5.0]
[1732634436411,39.15402997,229.77,229.65,39.15402997]
[1732634436605,39.15402997,229.74,229.73,5.0]
[1732634437312,59.15402997,229.74,229.64,39.15402997]
[1732634437612,39.15402997,229.71,229.64,39.15402997]
[1732634437990,39.15402997,229.7,229.68,5.0]
[1732634438209,39.15402997,229.72,229.7,5.0]
[1732634438601,39.15402997,229.72,229.71,5.0]
[1732634438801,43.50712997,229.72,229.71,5.0]
[1732634439414,43.50712997,229.72,229.68,5.0]
[1732634439596,39.15402997,229.7,229.62,39.15402997]
[1732634439788,39.15402997,229.7,229.68,5.0]
[1732634440821,4.3536,229.69,229.68,5.0]
[1732634441031,4.3536,229.69,229.67,5.0]
[1732634441194,59.15402997,229.68,229.67,5.0]
[1732634441390,59.15402997,229.68,229.6,44.15402997]
[1732634441596,59.15402997,229.68,229.67,5.0]
[1732634442217,59.15402997,229.68,229.63,5.0]
[1732634442218,20.0,229.65,229.63,5.0]
[1732634442413,39.15402997,229.64,229.63,5.0]
[1732634442729,4.3554,229.6,229.52,5.0]
[1732634442897,10.8868,229.64,229.59,5.0]
[1732634443100,20.0,229.62,229.61,5.0]
[1732634443499,20.0,229.62,229.52,44.15402997]
[1732634443806,39.15402997,229.59,229.58,5.0]
[1732634444009,39.15402997,229.59,229.52,44.15402997]
[1732634444323,39.15402997,229.59,229.58,5.0]
[1732634444526,39.15402997,229.59,229.54,5.0]
[1732634444821,39.15402997,229.55,229.54,5.0]
[1732634445006,39.15402997,229.55,229.46,44.15402997]
[1732634445202,20.0,229.58,229.54,5.0]
[1732634445520,39.15402997,229.55,229.43,50.51062997]
[1732634445711,39.15402997,229.5,229.49,5.0]
[1732634445914,39.15402997,229.52,229.51,5.0]
[1732634446300,39.15402997,229.56,229.53,5.0]
[1732634446517,20.0,229.58,229.54,39.15402997]
[1732634446724,4.3558,229.58,229.56,5.0]
[1732634447100,43.50982997,229.58,229.56,5.0]
[1732634447516,39.15402997,229.57,229.56,5.0]
[1732634447708,39.15402997,229.57,229.47,5.0]
[1732634447927,39.15402997,229.53,229.52,5.0]
[1732634448424,39.15402997,229.56,229.54,5.0]
[1732634448616,0.6,229.6,229.54,5.0]
[1732634448617,43.51032997,229.55,229.54,5.0]
[1732634449405,43.51032997,229.55,229.5,5.0]
[1732634449713,39.15402997,229.51,229.5,5.0]
[1732634449909,39.15402997,229.51,229.44,5.0]
[1732634450114,39.15402997,229.51,229.41,39.15402997]
[1732634450115,39.15402997,229.51,229.47,5.0]
[1732634450448,39.15402997,229.51,229.5,5.0]
[1732634450606,39.15402997,229.54,229.53,5.0]
[1732634451227,43.51052997,229.54,229.53,5.0]
[1732634451525,43.51052997,229.54,229.37,15.8991]
[1732634451526,54.40182997,229.54,229.51,5.0]
[1732634451709,39.15402997,229.52,229.45,5.0]
[1732634452026,39.15402997,229.48,229.46,5.0]
[1732634452225,39.15402997,229.48,229.42,5.0]
[1732634452530,24.08439,229.5,229.49,5.0]
[1732634452726,4.3574,229.49,229.44,5.0]
[1732634452930,4.3574,229.49,229.48,5.0]
[1732634454627,28.44169,229.5,229.45,5.0]
[1732634454931,28.44169,229.5,229.49,5.0]
[1732634456127,4.3573,229.5,229.49,5.0]
[1732634456425,28.44169,229.5,229.49,5.0]
[1732634456729,4.3573,229.5,229.49,5.0]
[1732634457311,28.44169,229.5,229.49,5.0]
[1732634457717,39.33489,229.5,229.48,5.0]
[1732634457916,24.08439,229.49,229.42,5.0]
[1732634458120,24.08439,229.46,229.45,5.0]
[1732634458412,24.08439,229.46,229.42,5.0]
[1732634458618,24.08439,229.43,229.42,5.0]
[1732634459333,24.08439,229.44,229.42,5.0]
[1732634459508,28.44179,229.49,229.48,5.0]
[1732634460438,13.22934212,229.52,229.51,5.0]
[1732634460807,28.47844212,229.52,229.43,5.0]
[1732634461417,17.58624212,229.52,229.49,5.0]
[1732634462129,24.08439,229.5,229.43,5.0]
[1732634462309,28.47844212,229.52,229.46,5.0]
[1732634462509,24.08439,229.51,229.49,5.0]
[1732634462811,24.08439,229.5,229.49,5.0]
[1732634463007,13.22934212,229.52,229.51,5.0]
[1732634463207,13.22934212,229.52,229.51,29.08439]
[1732634464026,24.08439,229.6,229.51,29.08439]
[1732634464228,4.355,229.62,229.59,5.0]
[1732634464432,4.3547,229.64,229.63,5.0]
[1732634464611,4.3536,229.69,229.66,5.0]
[1732634465028,4.3529,229.73,229.7,5.0]
[1732634465631,4.3529,229.73,229.62,5.0]
[1732634465805,5.0,229.72,229.56,6.4243]
[1732634466011,24.08439,229.64,229.61,5.0]
[1732634466210,15.2352,229.73,229.7,5.0]
[1732634466440,15.2352,229.73,229.67,5.0]
[1732634466624,15.2352,229.73,229.7,5.0]
[1732634466821,15.2352,229.73,229.64,5.0]
[1732634467018,15.2352,229.73,229.7,5.0]
[1732634467334,15.2352,229.73,229.67,5.0]
[1732634467538,20.0,229.69,229.61,5.0]
[1732634467714,15.2385,229.68,229.56,6.4243]
[1732634467915,24.08439,229.6,229.56,11.4243]
[1732634468131,24.08439,229.6,229.56,6.4243]
[1732634468334,24.08439,229.59,229.56,5.0]
[1732634468523,24.08439,229.66,229.65,5.0]
[1732634468721,28.43819,229.68,229.67,5.0]
[1732634469114,28.43819,229.68,229.63,5.0]
[1732634469613,4.3538,229.68,229.57,5.0]
[1732634469813,4.3538,229.68,229.66,5.0]
[1732634470110,24.08439,229.74,229.7,5.0]
[1732634470311,24.08439,229.71,229.68,5.0]
[1732634470539,24.08439,229.69,229.62,5.0]
[1732634470840,24.08439,229.65,229.62,5.0]
[1732634471134,24.08439,229.67,229.66,5.0]
[1732634471338,24.08439,229.67,229.63,5.0]
[1732634471533,24.08439,229.67,229.66,5.0]
[1732634471839,4.3542,229.66,229.65,5.0]
[1732634472208,28.43859,229.66,229.59,5.0]
[1732634472416,28.43859,229.66,229.45,26.7906]
[1732634472417,24.08439,229.6,229.56,5.0]
[1732634472614,24.08439,229.57,229.56,5.0]
[1732634473341,24.08439,229.57,229.54,5.0]
[1732634473510,24.08439,229.55,229.54,5.0]
[1732634473935,10.8884,229.61,229.54,5.0]
[1732634474117,44.08439,229.58,229.56,5.0]
[1732634474317,24.08439,229.57,229.48,5.0]
[1732634474520,24.08439,229.57,229.43,6.3021]
[1732634474521,24.08439,229.5,229.46,5.0]
[1732634474730,24.08439,229.5,229.43,30.38649]
[1732634474731,20.0,229.57,229.5,5.0]
[1732634474937,20.0,229.57,229.53,5.0]
[1732634475630,20.0,229.57,229.47,5.0]
[1732634475835,15.2478,229.54,229.53,5.0]
[1732634476047,28.44089,229.54,229.53,5.0]
[1732634476340,4.3565,229.54,229.53,5.0]
[1732634476527,28.44089,229.54,229.53,5.0]
[1732634477235,20.0,229.51,229.49,5.0]
[1732634477444,24.08439,229.5,229.47,5.0]
[1732634477650,20.0,229.51,229.38,30.38649]
[1732634477651,24.08439,229.48,229.42,5.0]
[1732634477853,15.2511,229.49,229.43,5.0]
[1732634478018,24.08439,229.44,229.39,5.0]
[1732634478223,15.2511,229.49,229.39,5.0]
[1732634478224,24.08439,229.42,229.39,5.0]
[1732634478425,24.08439,229.4,229.34,5.0]
[1732634478646,24.08439,229.37,229.32,6.3021]
[1732634478824,13.83382928,229.45,229.31,5.3647909]
[1732634478825,24.08439,229.33,229.31,5.3647909]
[1732634479029,24.08439,229.34,229.31,5.3647909]
[1732634479326,24.08439,229.36,229.35,5.0]
[1732634479748,24.08439,229.38,229.35,5.0]
[1732634480043,4.3596,229.38,229.35,5.0]
[1732634480244,24.08439,229.37,229.31,0.3647909]
[1732634480542,45.63034521,229.32,229.31,0.3647909]
[1732634480743,46.23034521,229.32,229.31,0.3647909]
[1732634480942,57.10787208,229.32,229.31,0.3647909]
[1732634481147,45.63034521,229.32,229.31,0.3647909]
[1732634481832,46.23034521,229.32,229.31,0.3647909]
[1732634482022,51.94320658,229.32,229.31,0.3647909]
[1732634482222,43.57624521,229.32,229.31,0.3647909]
[1732634482442,4.3607,229.32,229.31,0.3647909]
[1732634482645,39.21554521,229.38,229.31,39.58033611]
[1732634482945,39.21554521,229.34,229.31,0.3647909]
[1732634483152,39.21554521,229.32,229.31,0.3647909]
[1732634483525,39.21554521,229.39,229.36,5.0]
[1732634483730,43.57484521,229.4,229.36,5.0]
[1732634483935,43.57524521,229.37,229.31,0.3647909]
[1732634484135,4.3597,229.37,229.31,0.3647909]
[1732634484540,4.3597,229.37,229.32,5.0]
[1732634484745,4.3597,229.37,229.31,0.3647909]
[1732634485046,20.0,229.34,229.31,0.3647909]
[1732634485248,39.21554521,229.32,229.31,0.3647909]
[1732634485652,39.21554521,229.33,229.32,5.0]
[1732634485834,43.57524521,229.37,229.34,5.0]
[1732634486030,39.21554521,229.35,229.31,5.3647909]
[1732634486232,39.21554521,229.35,229.33,5.0]
[1732634486530,39.21554521,229.35,229.31,0.3647909]
[1732634486736,39.21554521,229.33,229.31,0.3647909]
[1732634486939,39.21554521,229.35,229.31,0.3647909]
[1732634487133,39.21554521,229.35,229.34,5.0]
[1732634487331,39.21554521,229.35,229.31,0.3647909]
[1732634487536,39.21554521,229.38,229.34,5.0]
[1732634487838,39.21554521,229.41,229.37,5.0]
[1732634488039,4.359,229.41,229.39,5.0]
[1732634488245,43.57454521,229.41,229.32,6.2411]
[1732634488442,4.359,229.41,229.31,0.3647909]
[1732634488655,4.959,229.41,229.31,0.3647909]
[1732634488827,0.6,229.4,229.33,5.0]
[1732634489023,20.0,229.37,229.31,0.3647909]
[1732634489224,25.6,229.36,229.31,0.3647909]
[1732634489447,0.6,229.32,229.31,0.3647909]
[1732634489657,39.21554521,229.32,229.31,0.3647909]
[1732634490025,43.57624521,229.32,229.31,0.3647909]
[1732634494456,44.17624521,229.32,229.31,0.3647909]
[1732634494629,44.17624521,229.32,229.27,4.8647909]
[1732634494955,39.21554521,229.28,229.27,4.8647909]
[1732634495337,39.21554521,229.28,229.24,4.8647909]
[1732634495533,39.21554521,229.25,229.24,4.8647909]
[1732634495739,39.21554521,229.25,229.24,4.3647909]
[1732634496159,43.57754521,229.25,229.24,4.3647909]
[1732634497038,82.79309042,229.25,229.24,4.3647909]
[1732634497234,43.57754521,229.25,229.24,4.3647909]
[1732634497556,43.57754521,229.25,229.23,4.3647909]
[1732634497740,39.21554521,229.24,229.23,4.3647909]
[1732634498368,4.3624,229.23,229.19,4.3647909]
[1732634498662,39.21554521,229.2,229.11,4.3647909]
[1732634498836,15.2684,229.23,229.2,4.3647909]
[1732634499044,39.21554521,229.21,229.2,4.3647909]
[1732634499560,39.21554521,229.21,229.16,4.3647909]
[1732634499747,39.21554521,229.21,229.2,4.3647909]
[1732634500250,4.363,229.2,229.19,4.3647909]
[1732634501935,43.57834521,229.21,229.19,4.3647909]
[1732634502130,10.9044,229.27,229.12,39.21554521]
[1732634502131,43.57794521,229.23,229.22,4.3647909]
[1732634502331,28.50935796,229.23,229.22,4.3647909]
[1732634502552,28.50935796,229.23,229.15,4.3647909]
[1732634502764,20.0,229.2,229.17,4.3647909]
[1732634503243,24.14695796,229.18,229.13,4.3647909]
[1732634503593,24.14695796,229.15,229.13,4.3647909]
[1732634504060,20.0,229.2,229.17,4.3647909]
[1732634504241,4.3631,229.19,229.14,4.3647909]
[1732634504441,24.14695796,229.16,229.14,4.3647909]
[1732634504643,4.3631,229.19,229.15,4.3647909]
[1732634504850,24.14695796,229.16,229.13,4.3647909]
[1732634505057,24.14695796,229.14,229.13,4.3647909]
[1732634506242,28.51105796,229.14,229.13,4.3647909]
[1732634507771,63.56831592,229.14,229.08,0.5221229]
[1732634508059,28.51195796,229.09,229.08,0.5221229]
[1732634509049,28.51195796,229.09,229.04,4.3647909]
[1732634509050,58.95389807,229.09,229.04,4.3647909]
[1732634509244,20.0,229.06,229.03,4.3647909]
[1732634509448,20.0,229.06,228.88,5.0]
[1732634509449,48.29391592,229.04,228.96,4.3647909]
[1732634509766,37.1031,229.09,228.98,4.3647909]
[1732634509767,15.2777,229.09,228.98,4.3647909]
[1732634509944,15.2777,229.09,228.88,11.0933]
[1732634509945,20.0,229.06,229.03,4.3647909]
[1732634510149,4.366,229.04,229.02,4.3647909]
[1732634510352,4.366,229.04,228.97,4.3647909]
[1732634510562,4.3658,229.06,229.05,4.3647909]
[1732634510867,28.51275796,229.06,228.98,4.3647909]
[1732634511043,24.14695796,229.01,229.0,4.3647909]
[1732634511339,24.14695796,229.03,229.0,4.3647909]
[1732634511542,24.14695796,229.09,229.04,4.3647909]
[1732634511749,24.14695796,229.13,229.09,4.3647909]
[1732634512062,24.14695796,229.13,229.11,4.3647909]
[1732634512267,4.3645,229.12,229.08,4.3647909]
[1732634512463,24.14695796,229.11,229.1,4.3647909]
[1732634512638,24.14695796,229.11,229.08,4.3647909]
[1732634512960,28.51145796,229.13,229.1,4.3647909]
[1732634513144,28.51145796,229.13,229.02,6.0933]
[1732634513145,28.51145796,229.13,229.06,4.3647909]
[1732634513347,24.14695796,229.07,229.06,4.3647909]
[1732634513765,24.14695796,229.07,229.02,6.0933]
[1732634513766,24.14695796,229.07,229.04,4.3647909]
[1732634513963,20.0,229.1,229.04,4.3647909]
[1732634514172,35.05775796,229.13,229.09,4.3647909]
[1732634514365,4.3645,229.12,229.09,4.3647909]
[1732634514682,4.3645,229.12,229.11,4.3647909]
[1732634514964,24.14695796,229.13,229.06,4.3647909]
[1732634515177,1.9581801,229.16,229.11,4.3647909]
[1732634515345,4.3635,229.17,229.11,4.3647909]
[1732634515543,15.2724,229.17,229.11,4.3647909]
[1732634515767,24.14695796,229.12,229.11,4.3647909]
[1732634516054,24.14695796,229.14,229.13,4.3647909]
[1732634516261,4.3635,229.17,229.15,4.3647909]
[1732634516262,24.14695796,229.16,229.15,4.3647909]
[1732634516763,24.14695796,229.18,229.17,4.3647909]
[1732634517177,24.14695796,229.18,229.12,4.3647909]
[1732634517479,4.3631,229.2,229.19,4.3647909]
[1732634517767,4.3631,229.2,229.05,20.7422]
[1732634517768,5.0,229.16,229.01,20.0]
[1732634517963,5.0,229.2,229.12,24.14695796]
[1732634518172,5.0,229.2,229.14,24.14695796]
[1732634518346,24.14695796,229.23,229.16,24.14695796]
[1732634518548,34.14695796,229.25,229.16,24.14695796]
[1732634518746,17.59235915,229.33,229.02,24.27244796]
[1732634518747,29.14695796,229.27,229.18,24.14695796]
[1732634519146,24.14695796,229.21,229.14,24.14695796]
[1732634519343,5.0,229.18,229.1,24.14695796]
[1732634519743,5.0,229.18,229.03,15.2818]
[1732634519744,24.14695796,229.15,229.08,24.14695796]
[1732634519965,24.14695796,229.15,229.06,24.14695796]
[1732634520345,5.0,229.16,229.1,24.14695796]
[1732634520551,24.14695796,229.17,229.1,24.14695796]
[1732634520769,29.14695796,229.21,229.12,24.14695796]
[1732634520966,24.14695796,229.23,229.16,24.14695796]
[1732634521158,5.0,229.26,229.18,24.14695796]
[1732634521159,29.14695796,229.26,229.18,24.14695796]
[1732634521673,5.0,229.23,229.18,24.14695796]
[1732634521867,24.14695796,229.22,229.14,24.14695796]
[1732634522167,24.14695796,229.22,229.06,23.902374]
[1732634522168,24.14695796,229.2,229.12,24.14695796]
[1732634522349,24.14695796,229.2,229.12,28.51135796]
[1732634522551,24.14695796,229.22,229.14,24.14695796]
[1732634522776,29.14695796,229.22,229.14,24.14695796]
[1732634522951,29.14695796,229.2,229.12,24.14695796]
[1732634523487,29.14695796,229.27,229.19,24.14695796]
[1732634523781,24.14695796,229.25,229.19,24.14695796]
[1732634523976,5.0,229.2,229.17,24.14695796]
[1732634524473,5.0,229.24,229.17,24.14695796]
[1732634524880,5.0,229.18,229.11,24.14695796]
[1732634525467,24.14695796,229.19,229.11,24.14695796]
[1732634525654,29.14695796,229.21,229.13,24.14695796]
[1732634525853,5.0,229.24,229.17,24.14695796]
[1732634526053,24.14695796,229.21,229.11,24.14695796]
[1732634526260,24.14695796,229.15,229.07,24.14695796]
[1732634526457,24.14695796,229.15,229.05,30.24025796]
[1732634526458,29.14695796,229.13,229.05,30.24025796]
[1732634526779,34.14695796,229.11,229.05,6.0933]
[1732634526962,34.14695796,229.07,228.98,6.3945]
[1732634527152,5.0,228.99,228.93,24.14695796]
[1732634527553,5.0,228.97,228.91,24.14695796]
[1732634527954,29.14695796,228.94,228.85,0.5221229]
[1732634528179,5.0,228.93,228.87,24.14695796]
[1732634528370,5.0,228.91,228.87,24.14695796]
[1732634528566,5.0,228.93,228.88,39.32579033]
[1732634528762,5.0,228.91,228.86,39.32579033]
[1732634528967,39.32579033,228.94,228.86,39.32579033]
[1732634529174,5.0,228.96,228.9,39.32579033]
[1732634529864,5.0,228.98,228.92,39.32579033]
[1732634530055,5.0,228.99,228.92,39.32579033]
[1732634530376,10.0,228.96,228.9,39.32579033]
[1732634530574,5.0,228.97,228.9,39.32579033]
[1732634530759,44.32579033,228.98,228.9,39.32579033]
[1732634531172,39.32579033,229.0,228.87,4.3692]
[1732634531382,10.0,229.01,228.94,39.32579033]
[1732634531383,5.0,228.98,228.94,39.32579033]
[1732634531683,53.69189033,229.04,228.96,39.32579033]
[1732634531858,53.69189033,229.04,228.94,39.32579033]
[1732634531859,5.0,229.01,228.94,39.32579033]
[1732634532058,39.32579033,229.02,228.94,39.32579033]
[1732634532355,5.0,229.03,228.97,39.32579033]
[1732634532565,5.0,229.01,228.94,39.32579033]
[1732634532770,44.32579033,229.02,228.94,39.32579033]
[1732634532771,5.0,228.99,228.94,39.32579033]
[1732634533059,5.0,228.97,228.96,39.32579033]
[1732634533377,10.9138,229.07,228.96,39.32579033]
[1732634533378,10.0,229.06,228.96,39.32579033]
[1732634533553,39.32579033,229.08,229.0,39.32579033]
[1732634533757,39.32579033,229.08,228.92,10.7627]
[1732634533758,5.0,229.02,228.98,39.32579033]
[1732634534058,5.0,229.02,228.92,10.7627]
[1732634534059,44.32579033,229.04,228.96,39.32579033]
[1732634534370,4.3654,229.07,228.92,10.7627]
[1732634534371,5.0,229.02,228.98,39.32579033]
[1732634534574,5.0,228.98,228.91,39.32579033]
[1732634534773,39.32579033,229.04,228.95,39.32579033]
[1732634534964,9.366,229.05,228.97,39.32579033]
[1732634535161,5.0,229.05,228.99,39.32579033]
[1732634535365,5.0,229.04,229.01,39.32579033]
[1732634535563,5.0,229.0,228.97,39.32579033]
[1732634536095,44.32579033,228.98,228.91,39.32579033]
[1732634536261,5.0,228.95,228.91,39.32579033]
[1732634536465,44.32579033,228.98,228.91,39.32579033]
[1732634536768,44.32579033,228.98,228.92,39.32579033]
[1732634536769,5.0,228.95,228.92,39.32579033]
[1732634537562,4.3674,228.97,228.92,39.32579033]
[1732634537756,5.0,228.96,228.92,39.32579033]
[1732634538086,5.0,228.95,228.92,39.32579033]
[1732634538273,39.32579033,229.0,228.92,39.32579033]
[1732634538274,9.367,228.99,228.92,39.32579033]
[1732634538476,5.0,228.97,228.92,39.32579033]
[1732634538682,5.0,228.93,228.92,39.32579033]
[1732634538880,5.0,228.93,228.89,39.32579033]
[1732634539262,39.32579033,228.97,228.89,39.32579033]
[1732634539458,5.0,228.95,228.91,39.32579033]
[1732634540071,5.0,228.94,228.89,39.32579033]
[1732634540269,5.0,228.91,228.87,39.32579033]
[1732634540483,5.0,228.88,228.85,0.5221229]
[1732634540792,5.0,228.88,228.85,39.84791323]
[1732634541001,5.0,228.93,228.87,39.32579033]
[1732634541195,17.62743241,229.0,228.85,4.8917229]
[1732634541368,5.0,228.98,228.94,39.32579033]
[1732634541568,5.0,228.95,228.94,39.32579033]
[1732634541794,17.62743241,229.0,228.94,39.32579033]
[1732634541993,13.26053241,229.0,228.98,39.32579033]
[1732634542296,5.0,228.99,228.96,39.32579033]
[1732634542594,5.0,228.99,228.94,39.32579033]
[1732634542886,10.0,228.94,228.88,39.32579033]
[1732634543091,5.0,228.92,228.89,39.32579033]
[1732634543388,5.0,228.95,228.91,39.32579033]
[1732634543590,13.26053241,229.0,228.94,39.32579033]
[1732634543798,13.26053241,229.0,228.99,39.32579033]
[1732634544185,59.58649033,229.07,228.99,39.32579033]
[1732634544186,15.2607,229.07,228.99,39.32579033]
[1732634544383,39.32579033,229.05,228.93,4.3681]
[1732634544568,19.6261,229.07,229.01,39.32579033]
[1732634544883,5.0,229.07,229.03,39.32579033]
[1732634545088,44.32579033,229.11,229.03,39.32579033]
[1732634545089,9.3651,229.09,229.03,39.32579033]
[1732634545471,5.0,229.12,229.06,39.32579033]
[1732634545671,43.68999033,229.14,229.08,39.32579033]
[1732634545890,5.0,229.15,229.12,39.32579033]
[1732634546103,5.0,229.16,229.14,39.32579033]
[1732634546472,5.0,229.21,229.14,39.32579033]
[1732634546675,10.0,229.19,229.14,39.32579033]
[1732634546888,5.0,229.19,229.14,39.32579033]
[1732634547072,5.0,229.16,229.12,39.32579033]
[1732634547272,5.0,229.21,229.14,39.32579033]
[1732634547492,5.0,229.21,229.16,39.32579033]
[1732634547698,5.0,229.21,229.14,39.32579033]
[1732634547999,5.0,229.19,229.14,39.32579033]
[1732634548170,5.0,229.17,229.14,39.32579033]
[1732634548372,5.0,229.17,229.07,6.2625]
[1732634548373,10.0,229.17,229.12,39.32579033]
[1732634548580,5.0,229.15,229.12,39.32579033]
[1732634548985,5.0,229.15,229.1,39.32579033]
[1732634549369,5.0,229.15,229.12,39.32579033]
[1732634549591,5.0,229.15,229.1,39.32579033]
[1732634549887,5.0,229.14,229.08,39.32579033]
[1732634550092,9.3636,229.17,229.12,39.32579033]
[1732634550288,4.3636,229.17,229.13,24.14387841]
[1732634550489,5.0,229.21,229.05,20.0]
[1732634550692,5.0,229.2,229.14,24.14387841]
[1732634550872,5.0,229.19,229.14,24.14387841]
[1732634551072,5.0,229.21,229.18,24.14387841]
[1732634551397,5.0,229.21,229.05,20.0]
[1732634551398,9.3622,229.24,229.2,24.14387841]
[1732634551607,5.0,229.23,229.2,24.14387841]
[1732634551906,5.0,229.21,229.18,24.14387841]
[1732634552114,5.0,229.17,229.09,24.14387841]
[1732634552400,5.0,229.17,229.05,24.14387841]
[1732634552401,5.0,229.11,229.05,24.14387841]
[1732634552601,5.0,229.08,229.01,24.14387841]
[1732634553104,5.0,229.08,228.94,4.3679]
[1732634553285,5.0,229.03,228.98,24.14387841]
[1732634553489,5.0,229.04,229.0,24.14387841]
[1732634553704,10.0,229.04,228.98,24.14387841]
[1732634553999,34.14387841,229.08,229.0,24.14387841]
[1732634554207,34.14387841,229.08,229.03,24.14387841]
[1732634554208,4.3658,229.06,229.03,24.14387841]
[1732634554409,5.0,229.08,229.03,24.14387841]
[1732634554704,4.3651,229.09,229.05,24.14387841]
[1732634554906,5.0,229.1,229.05,24.14387841]
[1732634555077,5.0,229.06,229.01,24.14387841]
[1732634555277,4.3648,229.11,228.97,24.14387841]
[1732634555278,5.0,229.03,228.97,24.14387841]
[1732634555800,5.0,229.01,228.97,24.14387841]
[1732634557307,5.0,229.01,228.99,24.14387841]
[1732634557495,5.0,229.04,228.99,24.14387841]
[1732634557700,5.0,229.02,228.97,24.14387841]
[1732634557881,29.14387841,229.05,228.97,24.14387841]
[1732634558081,5.0,229.02,228.97,24.14387841]
[1732634558582,5.0,229.03,228.99,24.14387841]
[1732634558782,5.0,229.03,228.97,24.14387841]
[1732634558783,9.3663,229.03,228.97,24.14387841]
[1732634558995,24.14387841,229.05,228.99,24.14387841]
[1732634558996,5.0,229.05,228.99,24.14387841]
[1732634559309,9.3656,229.07,229.01,24.14387841]
[1732634559509,5.0,229.07,229.03,24.14387841]
[1732634559682,5.0,229.05,228.99,24.14387841]
[1732634559887,5.0,229.02,228.97,24.14387841]
[1732634560089,5.0,229.07,229.01,24.14387841]
[1732634560300,9.3652,229.09,229.03,24.14387841]
[1732634560490,4.3651,229.09,229.03,24.14387841]
[1732634561006,4.3651,229.09,228.92,34.697684]
[1732634561007,4.3644,229.13,229.07,24.14387841]
[1732634561184,5.0,229.14,229.09,24.14387841]
[1732634561386,15.7174,229.15,229.11,24.14387841]
[1732634562093,15.7381,229.18,229.13,24.14387841]
[1732634562289,5.0,229.14,229.11,24.14387841]
[1732634562488,10.0,229.11,229.05,24.14387841]
[1732634562705,5.0,229.11,229.05,24.14387841]
[1732634562884,10.0,229.11,229.05,24.14387841]
[1732634563209,5.0,229.11,229.07,24.14387841]
[1732634563902,10.0,229.18,229.1,24.14387841]
[1732634564109,5.0,229.12,229.11,24.14387841]
[1732634564410,28.50727841,229.18,228.98,6.5938]
[1732634564411,5.0,229.11,229.07,24.14387841]
[1732634564710,5.0,229.11,229.09,24.14387841]
[1732634564892,5.0,229.11,228.98,6.5938]
[1732634564893,5.0,229.11,229.06,24.14387841]
[1732634565293,5.0,229.11,229.09,24.14387841]
[1732634565513,10.0,229.17,229.1,24.14387841]
[1732634565689,10.0,229.17,229.12,24.14387841]
[1732634565690,14.3636,229.17,229.12,24.14387841]
[1732634565896,10.0,229.16,229.13,24.14387841]
[1732634566304,5.0,229.18,229.15,24.14387841]
[1732634566609,20.7174,229.21,229.17,24.14387841]
[1732634566818,5.0,229.21,229.19,24.14387841]
[1732634567205,5.0,229.28,229.2,24.14387841]
[1732634567393,5.0,229.27,229.26,24.14387841]
[1732634567911,5.0,229.27,229.24,24.14387841]
[1732634568209,5.0,229.27,229.26,24.14387841]
[1732634568390,5.0,229.27,229.24,24.14387841]
[1732634568592,10.0,229.25,229.2,24.14387841]
[1732634568798,14.3621,229.25,229.2,24.14387841]
[1732634569014,10.0,229.25,229.22,24.14387841]
[1732634569512,5.0,229.27,229.24,24.14387841]
[1732634569894,5.0,229.27,229.22,24.14387841]
[1732634570086,5.0,229.25,229.22,24.14387841]
[1732634570318,5.0,229.27,229.22,24.14387841]
[1732634570528,5.0,229.24,229.07,6.2696]
[1732634570694,5.0,229.18,229.14,24.14387841]
[1732634570894,5.0,229.19,229.14,24.14387841]